[Event "Titled Tuesday Blitz May 24 Early 2022"]
[White "Hernandez Jimenez, Alexander Andres"]
[Black "Provaznik, Michal"]
[WhiteFideId "3900452"]
[BlackFideId "315273"]
[WhiteElo "2098"]
[BlackElo "2176"]
[Result "1-0"]
[Round "05"]
[TimeControl "180+1"]
[Date "2022.05.25"]
[WhiteClock "0:01:09"]
[BlackClock "0:00:30"]

1. e4 {[%clk 0:02:55]}  c5 {[%clk 0:02:59]} 2. Nf3 {[%clk 0:02:54]}  Nc6 {[%clk 0:02:55]} 3. d4 {[%clk 0:02:54]}  cxd4 {[%clk 0:02:52]} 4. Nxd4 {[%clk 0:02:54]}  Nf6 {[%clk 0:02:50]} 5. Nc3 {[%clk 0:02:54]}  e6 {[%clk 0:02:49]} 6. Be2 {[%clk 0:02:51]}  Bc5 {[%clk 0:02:48]} 7. Nb3 {[%clk 0:02:50]}  Bb6 {[%clk 0:02:48]} 8. O-O {[%clk 0:02:50]}  O-O {[%clk 0:02:48]} 9. Bg5 {[%clk 0:02:48]}  h6 {[%clk 0:02:32]} 10. Bh4 {[%clk 0:02:47]}  g5 {[%clk 0:02:29]} 11. Bg3 {[%clk 0:02:47]}  e5 {[%clk 0:02:26]} 12. h4 {[%clk 0:02:35]}  d6 {[%clk 0:02:13]} 13. hxg5 {[%clk 0:02:34]}  hxg5 {[%clk 0:02:12]} 14. Qd2 {[%clk 0:02:33]}  Nh7 {[%clk 0:02:09]} 15. Nd5 {[%clk 0:02:32]}  Be6 {[%clk 0:02:07]} 16. Rad1 {[%clk 0:02:24]}  Bc5 {[%clk 0:01:51]} 17. Nxc5 {[%clk 0:02:20]}  dxc5 {[%clk 0:01:51]} 18. c3 {[%clk 0:02:19]}  Rc8 {[%clk 0:01:11]} 19. f3 {[%clk 0:02:14]}  Qa5 {[%clk 0:01:08]} 20. a3 {[%clk 0:02:08]}  a6 {[%clk 0:00:59]} 21. Qe3 {[%clk 0:02:07]}  Rfd8 {[%clk 0:00:52]} 22. Nf6+ {[%clk 0:02:04]}  Nxf6 {[%clk 0:00:48]} 23. Qxg5+ {[%clk 0:02:04]}  Kf8 {[%clk 0:00:46]} 24. Qxf6 {[%clk 0:02:04]}  Qc7 {[%clk 0:00:43]} 25. Qh8+ {[%clk 0:01:52]}  Ke7 {[%clk 0:00:42]} 26. Bh4+ {[%clk 0:01:53]}  f6 {[%clk 0:00:37]} 27. Bxf6+ {[%clk 0:01:45]}  Kf7 {[%clk 0:00:36]} 28. Bxd8 {[%clk 0:01:10]}  Rxd8 {[%clk 0:00:36]} 29. Qh7+ {[%clk 0:01:10]}  Ke8 {[%clk 0:00:30]} 30. Qxc7 {[%clk 0:01:09]}  Rxd1 {[%clk 0:00:30]} 31. Rxd1 {[%clk 0:01:09]} 1-0


[Site "https://www.chess.com"]

[Event "Titled Tuesday Blitz May 24 Early 2022"]
[White "Horak, Martin"]
[Black "Al-Tarboush, Ward"]
[WhiteFideId "367095"]
[BlackFideId "7601450"]
[WhiteElo "1997"]
[BlackElo "2294"]
[Result "0-1"]
[Round "05"]
[TimeControl "180+1"]
[Date "2022.05.25"]
[WhiteClock "0:00:29"]
[BlackClock "0:00:36"]

1. e4 {[%clk 0:03:00]}  e6 {[%clk 0:02:28]} 2. d4 {[%clk 0:02:55]}  d5 {[%clk 0:02:26]} 3. Nd2 {[%clk 0:02:55]}  c5 {[%clk 0:02:25]} 4. exd5 {[%clk 0:02:55]}  Qxd5 {[%clk 0:02:23]} 5. Ngf3 {[%clk 0:02:55]}  cxd4 {[%clk 0:02:22]} 6. Bc4 {[%clk 0:02:55]}  Qd6 {[%clk 0:02:20]} 7. O-O {[%clk 0:02:50]}  Nf6 {[%clk 0:02:18]} 8. Nb3 {[%clk 0:02:50]}  Nc6 {[%clk 0:02:17]} 9. Re1 {[%clk 0:02:50]}  Be7 {[%clk 0:02:14]} 10. Nbxd4 {[%clk 0:02:50]}  Nxd4 {[%clk 0:02:11]} 11. Nxd4 {[%clk 0:02:47]}  O-O {[%clk 0:02:09]} 12. c3 {[%clk 0:02:40]}  a6 {[%clk 0:02:03]} 13. Qf3 {[%clk 0:02:38]}  Qc5 {[%clk 0:01:48]} 14. Bd3 {[%clk 0:02:31]}  Bd6 {[%clk 0:01:45]} 15. h3 {[%clk 0:02:10]}  e5 {[%clk 0:01:43]} 16. Nf5 {[%clk 0:02:09]}  e4 {[%clk 0:01:43]} 17. Nh6+ {[%clk 0:01:24]}  Kh8 {[%clk 0:01:42]} 18. Rxe4 {[%clk 0:01:16]}  Nxe4 {[%clk 0:01:37]} 19. Qxe4 {[%clk 0:01:16]}  f5 {[%clk 0:01:29]} 20. Qh4 {[%clk 0:00:48]}  Qe5 {[%clk 0:00:59]} 21. Ng4 {[%clk 0:00:33]}  Qe1+ {[%clk 0:00:50]} 22. Bf1 {[%clk 0:00:33]}  fxg4 {[%clk 0:00:49]} 23. Bh6 {[%clk 0:00:27]}  Qxa1 {[%clk 0:00:40]} 24. Bxg7+ {[%clk 0:00:28]}  Kxg7 {[%clk 0:00:39]} 25. Qg5+ {[%clk 0:00:28]}  Kh8 {[%clk 0:00:37]} 26. Qg7+ {[%clk 0:00:29]}  Kxg7 {[%clk 0:00:36]} 0-1


[Site "https://www.chess.com"]

[Event "Titled Tuesday Blitz May 24 Early 2022"]
[White "Iljin, Timofey"]
[Black "Lauridsen, Jesper Morch"]
[WhiteFideId "14110180"]
[BlackFideId "1401890"]
[WhiteElo "2404"]
[BlackElo "2247"]
[Result "1-0"]
[Round "05"]
[TimeControl "180+1"]
[Date "2022.05.25"]
[WhiteClock "0:01:48"]
[BlackClock "0:00:07"]

1. d4 {[%clk 0:03:00]}  d5 {[%clk 0:02:59]} 2. c4 {[%clk 0:03:01]}  e6 {[%clk 0:02:58]} 3. Nc3 {[%clk 0:03:02]}  Nf6 {[%clk 0:02:58]} 4. cxd5 {[%clk 0:03:02]}  Nxd5 {[%clk 0:02:58]} 5. e4 {[%clk 0:03:02]}  Nxc3 {[%clk 0:02:58]} 6. bxc3 {[%clk 0:03:03]}  c5 {[%clk 0:02:58]} 7. Rb1 {[%clk 0:03:01]}  Nc6 {[%clk 0:02:55]} 8. Nf3 {[%clk 0:03:01]}  cxd4 {[%clk 0:02:54]} 9. cxd4 {[%clk 0:03:02]}  Bb4+ {[%clk 0:02:46]} 10. Bd2 {[%clk 0:03:01]}  Bxd2+ {[%clk 0:02:46]} 11. Qxd2 {[%clk 0:03:02]}  O-O {[%clk 0:02:45]} 12. Bc4 {[%clk 0:03:03]}  b6 {[%clk 0:02:44]} 13. O-O {[%clk 0:03:03]}  Bb7 {[%clk 0:02:42]} 14. Rfe1 {[%clk 0:03:03]}  Rc8 {[%clk 0:02:41]} 15. Rbd1 {[%clk 0:03:01]}  Na5 {[%clk 0:02:39]} 16. Bd3 {[%clk 0:03:01]}  Nc4 {[%clk 0:02:38]} 17. Qe2 {[%clk 0:02:58]}  b5 {[%clk 0:02:29]} 18. h4 {[%clk 0:02:43]}  f5 {[%clk 0:02:22]} 19. exf5 {[%clk 0:02:36]}  Bxf3 {[%clk 0:02:17]} 20. Qxf3 {[%clk 0:02:27]}  Qxd4 {[%clk 0:02:15]} 21. Qh5 {[%clk 0:01:55]}  Nb2 {[%clk 0:01:07]} 22. Re4 {[%clk 0:01:54]}  Qf6 {[%clk 0:00:20]} 23. Rxe6 {[%clk 0:01:53]}  Qf7 {[%clk 0:00:17]} 24. Qxf7+ {[%clk 0:01:48]}  Rxf7 {[%clk 0:00:17]} 25. Rd2 {[%clk 0:01:48]}  Rc1+ {[%clk 0:00:14]} 26. Kh2 {[%clk 0:01:48]}  Nxd3 {[%clk 0:00:14]} 27. Rxd3 {[%clk 0:01:49]}  Rxf5 {[%clk 0:00:14]} 28. Rd8+ {[%clk 0:01:49]}  Rf8 {[%clk 0:00:14]} 29. Rd7 {[%clk 0:01:49]}  Rxf2 {[%clk 0:00:12]} 30. Re8+ {[%clk 0:01:47]}  Rf8 {[%clk 0:00:11]} 31. Ree7 {[%clk 0:01:48]}  Kh8 {[%clk 0:00:08]} 32. Rxg7 {[%clk 0:01:47]}  Rc2 {[%clk 0:00:07]} 33. Rxh7+ {[%clk 0:01:47]}  Kg8 {[%clk 0:00:07]} 34. Rdg7# {[%clk 0:01:48]} 1-0


[Site "https://www.chess.com"]

[Event "Titled Tuesday Blitz May 24 Early 2022"]
[White "Izzat, Kanan"]
[Black "Matlakov, Maxim"]
[WhiteFideId "13405209"]
[BlackFideId "4168003"]
[WhiteElo "2362"]
[BlackElo "2669"]
[Result "0-1"]
[Round "05"]
[TimeControl "180+1"]
[Date "2022.05.24"]
[WhiteClock "0:02:34"]
[BlackClock "0:02:43"]

1. e4 {[%clk 0:02:56]}  c5 {[%clk 0:02:59]} 2. Nf3 {[%clk 0:02:54]}  e6 {[%clk 0:03:00]} 3. c3 {[%clk 0:02:50]}  d5 {[%clk 0:02:58]} 4. exd5 {[%clk 0:02:50]}  exd5 {[%clk 0:02:58]} 5. d4 {[%clk 0:02:50]}  Nc6 {[%clk 0:02:58]} 6. Bb5 {[%clk 0:02:50]}  Bd6 {[%clk 0:02:57]} 7. O-O {[%clk 0:02:48]}  Ne7 {[%clk 0:02:57]} 8. dxc5 {[%clk 0:02:48]}  Bxc5 {[%clk 0:02:57]} 9. Nbd2 {[%clk 0:02:46]}  O-O {[%clk 0:02:54]} 10. Nb3 {[%clk 0:02:46]}  Bb6 {[%clk 0:02:49]} 11. h3 {[%clk 0:02:34]}  h6 {[%clk 0:02:43]} 0-1


[Site "https://www.chess.com"]

[Event "Titled Tuesday Blitz May 24 Early 2022"]
[White "Jakubowski, Krzysztof"]
[Black "Jakubowska, Anna"]
[WhiteFideId "1112848"]
[BlackFideId "1121952"]
[WhiteElo "2365"]
[BlackElo "1878"]
[Result "1-0"]
[Round "05"]
[TimeControl "180+1"]
[Date "2022.05.25"]
[WhiteClock "0:01:08"]
[BlackClock "0:00:19"]

1. c4 {[%clk 0:03:00]}  e5 {[%clk 0:02:59]} 2. g3 {[%clk 0:02:56]}  Nc6 {[%clk 0:02:58]} 3. Bg2 {[%clk 0:02:56]}  g6 {[%clk 0:02:59]} 4. Nc3 {[%clk 0:02:55]}  Bg7 {[%clk 0:02:59]} 5. Rb1 {[%clk 0:02:54]}  d6 {[%clk 0:02:59]} 6. b4 {[%clk 0:02:54]}  Nge7 {[%clk 0:02:56]} 7. b5 {[%clk 0:02:53]}  Nd4 {[%clk 0:02:57]} 8. e3 {[%clk 0:02:52]}  Ne6 {[%clk 0:02:57]} 9. Nge2 {[%clk 0:02:51]}  h5 {[%clk 0:02:54]} 10. h3 {[%clk 0:02:48]}  c6 {[%clk 0:02:48]} 11. O-O {[%clk 0:02:40]}  Bd7 {[%clk 0:02:38]} 12. d4 {[%clk 0:02:37]}  exd4 {[%clk 0:02:35]} 13. exd4 {[%clk 0:02:36]}  Qc8 {[%clk 0:02:34]} 14. bxc6 {[%clk 0:02:28]}  bxc6 {[%clk 0:02:30]} 15. Ne4 {[%clk 0:02:23]}  O-O {[%clk 0:02:05]} 16. Nxd6 {[%clk 0:02:21]}  Qd8 {[%clk 0:02:04]} 17. Ba3 {[%clk 0:02:11]}  Qa5 {[%clk 0:01:52]} 18. Bb4 {[%clk 0:02:10]}  Qxa2 {[%clk 0:01:46]} 19. Nc3 {[%clk 0:02:00]}  Qa6 {[%clk 0:01:40]} 20. d5 {[%clk 0:01:47]}  Nd4 {[%clk 0:01:07]} 21. Nce4 {[%clk 0:01:23]}  Rab8 {[%clk 0:01:03]} 22. Nc5 {[%clk 0:01:21]}  Qa2 {[%clk 0:00:55]} 23. Nxd7 {[%clk 0:01:18]}  Ne2+ {[%clk 0:00:50]} 24. Kh2 {[%clk 0:01:17]}  Rxb4 {[%clk 0:00:24]} 25. Rxb4 {[%clk 0:01:13]}  Rd8 {[%clk 0:00:24]} 26. dxc6 {[%clk 0:01:10]}  Nc3 {[%clk 0:00:19]} 27. Qf3 {[%clk 0:01:08]} 1-0


[Site "https://www.chess.com"]

[Event "Titled Tuesday Blitz May 24 Early 2022"]
[White "Johnson, Ben"]
[Black "Khamdamova, Afruza"]
[WhiteFideId "2010917"]
[BlackFideId "14210444"]
[WhiteElo "2206"]
[BlackElo "1660"]
[Result "0-1"]
[Round "05"]
[TimeControl "180+1"]
[Date "2022.05.25"]
[WhiteClock "0:00:02"]
[BlackClock "0:00:20"]

1. Nf3 {[%clk 0:03:00]}  Nf6 {[%clk 0:02:58]} 2. c4 {[%clk 0:03:00]}  b6 {[%clk 0:02:51]} 3. g3 {[%clk 0:02:51]}  Bb7 {[%clk 0:02:50]} 4. Bg2 {[%clk 0:02:52]}  g6 {[%clk 0:02:50]} 5. b3 {[%clk 0:02:48]}  Bg7 {[%clk 0:02:48]} 6. Bb2 {[%clk 0:02:49]}  O-O {[%clk 0:02:45]} 7. O-O {[%clk 0:02:49]}  c5 {[%clk 0:02:46]} 8. d4 {[%clk 0:02:37]}  cxd4 {[%clk 0:02:46]} 9. Nxd4 {[%clk 0:02:36]}  Bxg2 {[%clk 0:02:45]} 10. Kxg2 {[%clk 0:02:37]}  d6 {[%clk 0:02:38]} 11. Nc3 {[%clk 0:02:25]}  Qc7 {[%clk 0:02:37]} 12. Nd5 {[%clk 0:02:04]}  Qb7 {[%clk 0:02:29]} 13. Nf3 {[%clk 0:01:50]}  Nxd5 {[%clk 0:02:20]} 14. Bxg7 {[%clk 0:01:50]}  Kxg7 {[%clk 0:02:19]} 15. cxd5 {[%clk 0:01:49]}  Nd7 {[%clk 0:02:16]} 16. Qd4+ {[%clk 0:01:46]}  Nf6 {[%clk 0:01:51]} 17. e4 {[%clk 0:01:41]}  Rac8 {[%clk 0:01:46]} 18. Rac1 {[%clk 0:01:41]}  Qa6 {[%clk 0:01:22]} 19. Qb2 {[%clk 0:01:10]}  Qd3 {[%clk 0:01:15]} 20. e5 {[%clk 0:00:39]}  dxe5 {[%clk 0:01:13]} 21. Nxe5 {[%clk 0:00:37]}  Qxd5+ {[%clk 0:01:11]} 22. Nf3 {[%clk 0:00:30]}  Rfd8 {[%clk 0:01:04]} 23. Qe2 {[%clk 0:00:27]}  e6 {[%clk 0:00:49]} 24. Kg1 {[%clk 0:00:26]}  Ne4 {[%clk 0:00:41]} 25. Rcd1 {[%clk 0:00:25]}  Nc3 {[%clk 0:00:35]} 26. Qb2 {[%clk 0:00:20]}  Qxf3 {[%clk 0:00:31]} 27. Rc1 {[%clk 0:00:16]}  Kg8 {[%clk 0:00:29]} 28. Rfe1 {[%clk 0:00:15]}  b5 {[%clk 0:00:21]} 29. Re3 {[%clk 0:00:14]}  Rd1+ {[%clk 0:00:21]} 30. Rxd1 {[%clk 0:00:09]}  Qxd1+ {[%clk 0:00:21]} 31. Kg2 {[%clk 0:00:08]}  Qd5+ {[%clk 0:00:21]} 32. f3 {[%clk 0:00:08]}  Nd1 {[%clk 0:00:21]} 33. Re5 {[%clk 0:00:02]}  Nxb2 {[%clk 0:00:20]} 0-1


[Site "https://www.chess.com"]

[Event "Titled Tuesday Blitz May 24 Early 2022"]
[White "Kalogridis, Antonios"]
[Black "Tristan, Leonardo"]
[WhiteFideId "25833901"]
[BlackFideId "113816"]
[WhiteElo "1596"]
[BlackElo "2404"]
[Result "1/2-1/2"]
[Round "05"]
[TimeControl "180+1"]
[Date "2022.05.24"]
[WhiteClock "0:00:09"]
[BlackClock "0:00:04"]

1. d4 {[%clk 0:03:00]}  d5 {[%clk 0:03:00]} 2. c4 {[%clk 0:03:00]}  e6 {[%clk 0:03:00]} 3. Nc3 {[%clk 0:03:01]}  a6 {[%clk 0:03:01]} 4. cxd5 {[%clk 0:03:01]}  exd5 {[%clk 0:03:01]} 5. Nf3 {[%clk 0:03:01]}  Nf6 {[%clk 0:03:02]} 6. g3 {[%clk 0:02:58]}  Bf5 {[%clk 0:03:00]} 7. Bg2 {[%clk 0:02:58]}  Nbd7 {[%clk 0:02:57]} 8. Qb3 {[%clk 0:02:58]}  Nb6 {[%clk 0:02:57]} 9. O-O {[%clk 0:02:55]}  Be7 {[%clk 0:02:57]} 10. Ne5 {[%clk 0:02:55]}  O-O {[%clk 0:02:56]} 11. Na4 {[%clk 0:02:54]}  Nxa4 {[%clk 0:02:55]} 12. Qxa4 {[%clk 0:02:54]}  c6 {[%clk 0:02:55]} 13. Bf4 {[%clk 0:02:50]}  Qb6 {[%clk 0:02:54]} 14. Qb3 {[%clk 0:02:35]}  Qxb3 {[%clk 0:02:54]} 15. axb3 {[%clk 0:02:35]}  a5 {[%clk 0:02:54]} 16. Rfc1 {[%clk 0:02:29]}  Rfe8 {[%clk 0:02:54]} 17. Nf3 {[%clk 0:02:28]}  Bb4 {[%clk 0:02:50]} 18. Bf1 {[%clk 0:02:27]}  Ne4 {[%clk 0:02:49]} 19. h4 {[%clk 0:02:25]}  h6 {[%clk 0:02:49]} 20. Ne1 {[%clk 0:02:18]}  Nd2 {[%clk 0:02:25]} 21. Bxd2 {[%clk 0:02:09]}  Bxd2 {[%clk 0:02:26]} 22. Rd1 {[%clk 0:02:10]}  Bb4 {[%clk 0:02:24]} 23. Nd3 {[%clk 0:02:10]}  Bd6 {[%clk 0:02:22]} 24. e3 {[%clk 0:02:08]}  f6 {[%clk 0:02:16]} 25. Rdc1 {[%clk 0:02:06]}  Kf7 {[%clk 0:02:15]} 26. Nc5 {[%clk 0:02:05]}  Reb8 {[%clk 0:01:49]} 27. Bd3 {[%clk 0:02:00]}  Bg4 {[%clk 0:01:46]} 28. Na4 {[%clk 0:01:57]}  Bc7 {[%clk 0:01:36]} 29. Kf1 {[%clk 0:01:48]}  Re8 {[%clk 0:01:35]} 30. Be2 {[%clk 0:01:44]}  Bh3+ {[%clk 0:01:34]} 31. Ke1 {[%clk 0:01:44]}  Re7 {[%clk 0:01:24]} 32. Kd2 {[%clk 0:01:43]}  Rae8 {[%clk 0:01:21]} 33. Nc5 {[%clk 0:01:39]}  Bc8 {[%clk 0:01:20]} 34. g4 {[%clk 0:01:32]}  g6 {[%clk 0:01:08]} 35. Nd3 {[%clk 0:01:29]}  Kg7 {[%clk 0:01:04]} 36. Nc5 {[%clk 0:01:20]}  f5 {[%clk 0:01:04]} 37. gxf5 {[%clk 0:01:19]}  gxf5 {[%clk 0:01:04]} 38. Rg1+ {[%clk 0:01:18]}  Kh7 {[%clk 0:01:00]} 39. Bd3 {[%clk 0:01:16]}  Kh8 {[%clk 0:01:00]} 40. Rg6 {[%clk 0:01:14]}  Rh7 {[%clk 0:00:51]} 41. Rag1 {[%clk 0:01:06]}  Rf8 {[%clk 0:00:49]} 42. Ne6 {[%clk 0:00:57]}  Bxe6 {[%clk 0:00:46]} 43. Rxe6 {[%clk 0:00:58]}  Bd8 {[%clk 0:00:45]} 44. h5 {[%clk 0:00:56]}  Rg7 {[%clk 0:00:12]} 45. Rxh6+ {[%clk 0:00:53]}  Rh7 {[%clk 0:00:12]} 46. Rgg6 {[%clk 0:00:44]}  Rxh6 {[%clk 0:00:11]} 47. Rxh6+ {[%clk 0:00:44]}  Kg7 {[%clk 0:00:12]} 48. Rg6+ {[%clk 0:00:44]}  Kh7 {[%clk 0:00:13]} 49. Re6 {[%clk 0:00:39]}  Kg7 {[%clk 0:00:12]} 50. Rg6+ {[%clk 0:00:35]}  Kh7 {[%clk 0:00:12]} 51. Rd6 {[%clk 0:00:36]}  Bh4 {[%clk 0:00:09]} 52. Ke2 {[%clk 0:00:33]}  Rf7 {[%clk 0:00:09]} 53. Re6 {[%clk 0:00:31]}  Kg7 {[%clk 0:00:08]} 54. Re5 {[%clk 0:00:30]}  f4 {[%clk 0:00:07]} 55. Rf5 {[%clk 0:00:20]}  fxe3 {[%clk 0:00:03]} 56. Rxf7+ {[%clk 0:00:19]}  Kxf7 {[%clk 0:00:04]} 57. Kxe3 {[%clk 0:00:18]}  Bg5+ {[%clk 0:00:05]} 58. f4 {[%clk 0:00:17]}  Bf6 {[%clk 0:00:04]} 59. Bg6+ {[%clk 0:00:17]}  Kg7 {[%clk 0:00:04]} 60. Kd3 {[%clk 0:00:17]}  Kh6 {[%clk 0:00:05]} 61. Bf7 {[%clk 0:00:17]}  Bh4 {[%clk 0:00:04]} 62. Bg6 {[%clk 0:00:18]}  Bf2 {[%clk 0:00:04]} 63. f5 {[%clk 0:00:17]}  Bh4 {[%clk 0:00:05]} 64. Ke3 {[%clk 0:00:16]}  Bf6 {[%clk 0:00:05]} 65. Kd3 {[%clk 0:00:17]}  Kg5 {[%clk 0:00:05]} 66. Kc3 {[%clk 0:00:17]}  Bg7 {[%clk 0:00:06]} 67. Kd3 {[%clk 0:00:15]}  Bf6 {[%clk 0:00:06]} 68. Ke3 {[%clk 0:00:15]}  Bh8 {[%clk 0:00:06]} 69. Kd3 {[%clk 0:00:11]}  Bg7 {[%clk 0:00:07]} 70. Kc3 {[%clk 0:00:11]}  c5 {[%clk 0:00:06]} 71. Kd3 {[%clk 0:00:10]}  Bxd4 {[%clk 0:00:07]} 72. Bf7 {[%clk 0:00:11]}  Bxb2 {[%clk 0:00:07]} 73. Bxd5 {[%clk 0:00:11]}  b6 {[%clk 0:00:06]} 74. Kc4 {[%clk 0:00:10]}  Kxh5 {[%clk 0:00:03]} 75. Kb5 {[%clk 0:00:09]}  Bd4 {[%clk 0:00:04]} 76. Bc4 {[%clk 0:00:06]}  Kg5 {[%clk 0:00:02]} 77. Kxb6 {[%clk 0:00:07]}  Kxf5 {[%clk 0:00:03]} 78. Kxa5 {[%clk 0:00:07]}  Ke4 {[%clk 0:00:03]} 79. Kb5 {[%clk 0:00:08]}  Ke3 {[%clk 0:00:04]} 80. b4 {[%clk 0:00:08]}  cxb4 {[%clk 0:00:04]} 81. Kxb4 {[%clk 0:00:09]} 1/2-1/2


[Site "https://www.chess.com"]

[Event "Titled Tuesday Blitz May 24 Early 2022"]
[White "Kamsky, Gata"]
[Black "Martinez Alcantara, Jose Eduardo"]
[WhiteFideId "2000024"]
[BlackFideId "3805662"]
[WhiteElo "2645"]
[BlackElo "2690"]
[Result "0-1"]
[Round "05"]
[TimeControl "180+1"]
[Date "2022.05.24"]
[WhiteClock "0:00:01"]
[BlackClock "0:00:04"]

1. e4 {[%clk 0:03:00]}  c5 {[%clk 0:02:57]} 2. Nf3 {[%clk 0:02:58]}  d6 {[%clk 0:02:56]} 3. d4 {[%clk 0:02:57]}  cxd4 {[%clk 0:02:56]} 4. Nxd4 {[%clk 0:02:57]}  Nf6 {[%clk 0:02:57]} 5. Nc3 {[%clk 0:02:57]}  Nc6 {[%clk 0:02:56]} 6. Be2 {[%clk 0:02:56]}  e5 {[%clk 0:02:56]} 7. Nf3 {[%clk 0:02:55]}  Be7 {[%clk 0:02:56]} 8. O-O {[%clk 0:02:55]}  h6 {[%clk 0:02:43]} 9. Re1 {[%clk 0:02:43]}  Be6 {[%clk 0:02:41]} 10. Bf1 {[%clk 0:02:39]}  O-O {[%clk 0:02:37]} 11. h3 {[%clk 0:02:39]}  Qc7 {[%clk 0:02:23]} 12. Nd5 {[%clk 0:02:37]}  Bxd5 {[%clk 0:02:21]} 13. exd5 {[%clk 0:02:36]}  Nb4 {[%clk 0:02:22]} 14. c4 {[%clk 0:02:36]}  a5 {[%clk 0:02:22]} 15. Be3 {[%clk 0:02:05]}  Nd7 {[%clk 0:02:07]} 16. Bd2 {[%clk 0:01:54]}  Bf6 {[%clk 0:01:53]} 17. Nh2 {[%clk 0:01:50]}  Bd8 {[%clk 0:01:45]} 18. a3 {[%clk 0:01:43]}  Na6 {[%clk 0:01:45]} 19. b4 {[%clk 0:01:43]}  f5 {[%clk 0:01:35]} 20. Rc1 {[%clk 0:01:35]}  axb4 {[%clk 0:01:33]} 21. axb4 {[%clk 0:01:33]}  e4 {[%clk 0:01:11]} 22. Qb3 {[%clk 0:01:24]}  Qb6 {[%clk 0:01:03]} 23. Qg3 {[%clk 0:01:14]}  Kh8 {[%clk 0:00:49]} 24. Rb1 {[%clk 0:01:13]}  Bf6 {[%clk 0:00:43]} 25. Kh1 {[%clk 0:01:09]}  Be5 {[%clk 0:00:42]} 26. Qh4 {[%clk 0:01:07]}  Bf6 {[%clk 0:00:40]} 27. Qg3 {[%clk 0:01:06]}  Bd4 {[%clk 0:00:37]} 28. Re2 {[%clk 0:00:58]}  Ne5 {[%clk 0:00:35]} 29. c5 {[%clk 0:00:44]}  Nxc5 {[%clk 0:00:33]} 30. f3 {[%clk 0:00:40]}  Ncd3 {[%clk 0:00:32]} 31. fxe4 {[%clk 0:00:32]}  Nf2+ {[%clk 0:00:32]} 32. Rxf2 {[%clk 0:00:31]}  Bxf2 {[%clk 0:00:33]} 33. Qb3 {[%clk 0:00:28]}  fxe4 {[%clk 0:00:32]} 34. Be2 {[%clk 0:00:27]}  Rac8 {[%clk 0:00:27]} 35. Nf1 {[%clk 0:00:27]}  Qd4 {[%clk 0:00:24]} 36. Rd1 {[%clk 0:00:25]}  Nd3 {[%clk 0:00:25]} 37. Bg4 {[%clk 0:00:20]}  Rce8 {[%clk 0:00:17]} 38. Qb1 {[%clk 0:00:18]}  Qf6 {[%clk 0:00:16]} 39. Be2 {[%clk 0:00:17]}  Nf4 {[%clk 0:00:14]} 40. Bxf4 {[%clk 0:00:16]}  Qxf4 {[%clk 0:00:15]} 41. Qc2 {[%clk 0:00:15]}  Rc8 {[%clk 0:00:14]} 42. Qb3 {[%clk 0:00:14]}  Bb6 {[%clk 0:00:15]} 43. Qg3 {[%clk 0:00:14]}  Rc2 {[%clk 0:00:09]} 44. Qxf4 {[%clk 0:00:12]}  Rxf4 {[%clk 0:00:10]} 45. Bg4 {[%clk 0:00:12]}  g6 {[%clk 0:00:10]} 46. Ra1 {[%clk 0:00:11]}  Kg7 {[%clk 0:00:09]} 47. Ng3 {[%clk 0:00:09]}  e3 {[%clk 0:00:07]} 48. Bf3 {[%clk 0:00:09]}  Rxb4 {[%clk 0:00:06]} 49. Ne2 {[%clk 0:00:04]}  h5 {[%clk 0:00:05]} 50. Ra8 {[%clk 0:00:02]}  Bc7 {[%clk 0:00:04]} 51. Re8 {[%clk 0:00:02]}  Kf7 {[%clk 0:00:04]} 52. Rxe3 {[%clk 0:00:01]}  Bb6 {[%clk 0:00:04]} 53. Re6 {[%clk 0:00:01]}  Bc5 {[%clk 0:00:04]} 54. Kh2 {[%clk 0:00:01]}  Rd2 {[%clk 0:00:04]} 55. Kg3 {[%clk 0:00:01]}  h4+ {[%clk 0:00:03]} 56. Kh2 {[%clk 0:00:01]}  Rd3 {[%clk 0:00:04]} 0-1


[Site "https://www.chess.com"]

[Event "Titled Tuesday Blitz May 24 Early 2022"]
[White "Kejzar, Petra"]
[Black "Kholin, Aleksandr"]
[WhiteFideId "14610213"]
[BlackFideId "14179385"]
[WhiteElo "2004"]
[BlackElo "2481"]
[Result "1-0"]
[Round "05"]
[TimeControl "180+1"]
[Date "2022.05.25"]
[WhiteClock "0:00:17"]
[BlackClock "0:00:07"]

1. c4 {[%clk 0:03:00]}  e6 {[%clk 0:02:59]} 2. g3 {[%clk 0:03:00]}  d5 {[%clk 0:03:00]} 3. Bg2 {[%clk 0:03:00]}  Nf6 {[%clk 0:03:00]} 4. Nf3 {[%clk 0:03:00]}  Be7 {[%clk 0:03:00]} 5. O-O {[%clk 0:03:00]}  O-O {[%clk 0:03:00]} 6. d4 {[%clk 0:03:01]}  dxc4 {[%clk 0:03:00]} 7. Qc2 {[%clk 0:02:59]}  a6 {[%clk 0:02:59]} 8. a4 {[%clk 0:02:57]}  Bd7 {[%clk 0:02:47]} 9. Qxc4 {[%clk 0:02:50]}  Bc6 {[%clk 0:02:47]} 10. Qc2 {[%clk 0:02:45]}  Nbd7 {[%clk 0:02:47]} 11. Nc3 {[%clk 0:02:42]}  a5 {[%clk 0:02:46]} 12. e4 {[%clk 0:02:40]}  h6 {[%clk 0:02:43]} 13. Rd1 {[%clk 0:02:38]}  b6 {[%clk 0:01:40]} 14. d5 {[%clk 0:02:37]}  exd5 {[%clk 0:01:39]} 15. exd5 {[%clk 0:02:38]}  Bb7 {[%clk 0:01:39]} 16. Bf4 {[%clk 0:02:26]}  Rc8 {[%clk 0:01:03]} 17. Nd4 {[%clk 0:02:24]}  Bd6 {[%clk 0:00:48]} 18. Bxd6 {[%clk 0:02:18]}  cxd6 {[%clk 0:00:49]} 19. Nc6 {[%clk 0:02:14]}  Bxc6 {[%clk 0:00:43]} 20. dxc6 {[%clk 0:02:15]}  Ne5 {[%clk 0:00:42]} 21. Nb5 {[%clk 0:02:10]}  d5 {[%clk 0:00:39]} 22. c7 {[%clk 0:02:05]}  Qd7 {[%clk 0:00:39]} 23. Ra3 {[%clk 0:01:49]}  Nc4 {[%clk 0:00:30]} 24. Rc3 {[%clk 0:01:29]}  Nd6 {[%clk 0:00:26]} 25. Nxd6 {[%clk 0:01:22]}  Qxd6 {[%clk 0:00:26]} 26. Rc6 {[%clk 0:01:21]}  Qb4 {[%clk 0:00:26]} 27. Bh3 {[%clk 0:00:54]}  Ng4 {[%clk 0:00:18]} 28. Qf5 {[%clk 0:00:34]}  Qxa4 {[%clk 0:00:17]} 29. Rdc1 {[%clk 0:00:20]}  h5 {[%clk 0:00:11]} 30. Qxh5 {[%clk 0:00:18]}  f5 {[%clk 0:00:11]} 31. Bxg4 {[%clk 0:00:17]}  fxg4 {[%clk 0:00:10]} 32. Qxd5+ {[%clk 0:00:18]}  Kh7 {[%clk 0:00:10]} 33. Qd3+ {[%clk 0:00:17]}  Kh8 {[%clk 0:00:08]} 34. R6c4 {[%clk 0:00:17]}  Qe8 {[%clk 0:00:08]} 35. Rxg4 {[%clk 0:00:16]}  Qe6 {[%clk 0:00:07]} 36. Rh4+ {[%clk 0:00:16]}  Kg8 {[%clk 0:00:07]} 37. Qh7+ {[%clk 0:00:16]}  Kf7 {[%clk 0:00:07]} 38. Rf4+ {[%clk 0:00:16]}  Ke8 {[%clk 0:00:07]} 39. Re4 {[%clk 0:00:17]} 1-0


[Site "https://www.chess.com"]